fUSD/lending_fUSD_20260425
["ID","MTS","AMOUNT","RATE_DAILY","PERIOD"]
[421129722,1777125095373,-329.77810353,8.699e-05,2]
[421129723,1777125095402,-250.0,8.7e-05,2]
[421129724,1777125095589,-4813.27972946,8.7e-05,2]
[421129725,1777125098130,-10000.01,8.7e-05,2]
[421129726,1777125104248,-500.0,8.699e-05,2]
[421129727,1777125104286,-500.0,8.699e-05,2]
[421129728,1777125104323,-500.0,8.699e-05,2]
[421129729,1777125104359,-500.0,8.699e-05,2]
[421129730,1777125104395,-500.0,8.699e-05,2]
[421129731,1777125104431,-500.0,8.699e-05,2]
[421129732,1777125104467,-500.0,8.699e-05,2]
[421129733,1777125104502,-500.0,8.699e-05,2]
[421129734,1777125104538,-639.62708718,8.699e-05,2]
[421129735,1777125104573,-220.75582564,8.699e-05,2]
[421129736,1777125104764,-279.24417436,8.699e-05,2]
[421129737,1777125166063,151.0,8.548e-05,2]
[421129738,1777125166132,151.0,8.548e-05,2]
[421129739,1777125179860,254.39,8.505e-05,2]
[421129740,1777125286716,392.7,8.543e-05,2]
[421129741,1777125301186,1200.0,8.599e-05,2]
[421129742,1777125361200,300.0,8.599e-05,2]
[421129743,1777125392953,500.0,8.599e-05,2]
[421129744,1777125392995,316.0491299,8.599e-05,2]
[421129745,1777125393030,500.0,8.599e-05,2]
[421129746,1777125393131,280.57089985,8.599e-05,2]
[421129747,1777125393471,500.0,8.599e-05,2]
[421129748,1777125393590,500.0,8.599e-05,2]
[421129749,1777125393662,200.0,8.599e-05,2]
[421129750,1777125393693,500.0,8.599e-05,2]
[421129751,1777125396780,500.0,8.599e-05,2]
[421129752,1777125396814,500.0,8.599e-05,2]
[421129753,1777125396860,500.0,8.599e-05,2]
[421129754,1777125396901,513.96270872,8.599e-05,2]
[421129755,1777125396943,500.0,8.599e-05,2]
[421129756,1777125396983,500.0,8.599e-05,2]
[421129757,1777125397027,500.0,8.599e-05,2]
[421129758,1777125397069,500.0,8.599e-05,2]
[421129759,1777125397119,500.0,8.599e-05,2]
[421129760,1777125408258,499.99999999,8.599e-05,2]
[421129761,1777125408288,500.0,8.599e-05,2]
[421129762,1777125408322,500.0,8.599e-05,2]
[421129763,1777125408378,254.22227375,8.599e-05,2]
[421129764,1777125408421,154.66543297,8.599e-05,2]
[421129765,1777125408450,179.45144268,8.599e-05,2]
[421129766,1777125408516,500.0,8.599e-05,2]
[421129767,1777125421482,300.0,8.599e-05,2]
[421129768,1777125421736,150.0,8.599e-05,2]
[421129769,1777125426022,176.57342776,8.599e-05,2]
[421129770,1777125427641,500.0,8.599e-05,2]
[421129771,1777125432144,392.73,8.543e-05,2]
[421129772,1777125438929,500.0,8.599e-05,2]
[421129773,1777125450790,500.0,8.599e-05,2]
[421129774,1777125462153,500.0,8.599e-05,2]
[421129775,1777125473506,500.0,8.599e-05,2]
[421129776,1777125482274,251.0,8.599e-05,2]
[421129777,1777125484800,500.0,8.599e-05,2]
[421129778,1777125496150,181.9110341,8.599e-05,2]
[421129779,1777125511547,500.0,8.599e-05,2]
[421129780,1777125519572,590.61314386,8.599e-05,2]
[421129781,1777125531046,611.08821602,8.599e-05,2]
[421129782,1777125543056,500.0,8.599e-05,2]
[421129783,1777125561743,500.0,8.599e-05,2]
[421129784,1777125566890,483.78385603,8.599e-05,2]
[421129785,1777125578401,500.0,8.599e-05,2]
[421129786,1777125591493,500.0,8.599e-05,2]
[421129787,1777125601208,1200.0,8.599e-05,2]
[421129788,1777125601684,150.0,8.599e-05,2]
[421129789,1777125610127,500.0,8.599e-05,2]
[421129792,1777125625723,500.0,8.599e-05,2]
[421129793,1777125637301,500.0,8.599e-05,2]
[421129794,1777125642785,-247.34758376,8.6e-05,2]
[421129795,1777125645743,-10000.01,8.6e-05,2]
[421129796,1777125648686,-10000.01,8.6e-05,2]
[421129797,1777125652049,-10000.01,8.6e-05,2]
[421129798,1777125654723,-10000.01,8.6e-05,2]
[421129800,1777125660885,-199.16677021,8.599e-05,2]
[421129801,1777125660939,-9601.67645958,8.6e-05,2]
[421129804,1777125663992,-10000.01,8.6e-05,2]
[421129805,1777125670004,-10000.01,8.6e-05,2]
[421129806,1777125670437,-458.87600311,8.6e-05,2]
[421129807,1777125676057,-10000.01,8.6e-05,2]
[421129808,1777125679133,-10000.01,8.6e-05,2]
[421129809,1777125679339,-10000.01,8.6e-05,2]
[421129810,1777125679492,-10000.01,8.6e-05,2]
[421129811,1777125679638,-10000.01,8.6e-05,2]
[421129812,1777125679741,-10000.01,8.6e-05,2]
[421129813,1777125679850,-10000.01,8.6e-05,2]
[421129814,1777125679959,-10000.01,8.6e-05,2]
[421129815,1777125682114,-10000.01,8.6e-05,2]
[421129816,1777125685864,-10000.01,8.6e-05,2]
[421129817,1777125685898,-10000.01,8.6e-05,2]
[421129818,1777125685913,-10000.01,8.6e-05,2]
[421129819,1777125685928,-10000.01,8.6e-05,2]
[421129820,1777125685945,-10000.01,8.6e-05,2]
[421129821,1777125685979,-10000.01,8.6e-05,2]
[421129822,1777125685999,-10000.01,8.6e-05,2]
[421129823,1777125688691,1452.435,8.428e-05,2]
[421129824,1777125688774,185.171,8.428e-05,2]
[421129828,1777125719933,-983.0,8.6e-05,5]
[421129829,1777125725031,171.0,8.428e-05,3]
[421129830,1777125729188,670.58624095,8.595e-05,2]
[421129831,1777125734815,155.0,8.428e-05,3]
[421129832,1777125736684,151.0,8.595e-05,2]
[421129833,1777125742854,194.72792766,8.595e-05,2]
[421129834,1777125750691,174.61919142,8.595e-05,2]
[421129835,1777125781689,150.0,8.599e-05,2]
[421129836,1777125786973,500.0,8.599e-05,2]
[421129837,1777125787007,500.0,8.599e-05,2]
[421129838,1777125787054,395.8825965,8.599e-05,2]
[421129839,1777125787128,500.0,8.599e-05,2]
[421129840,1777125790529,171.0,8.595e-05,3]
[421129841,1777125799135,500.0,8.599e-05,2]
[421129842,1777125799553,500.0,8.599e-05,2]
[421129843,1777125799598,500.0,8.599e-05,2]
[421129844,1777125799636,500.0,8.599e-05,2]
[421129845,1777125799673,500.0,8.599e-05,2]
[421129846,1777125799708,500.0,8.599e-05,2]
[421129847,1777125799762,351.39627088,8.599e-05,2]
[421129848,1777125799798,500.0,8.599e-05,2]
[421129849,1777125799836,500.0,8.599e-05,2]
[421129850,1777125799871,500.0,8.599e-05,2]
[421129851,1777125799910,500.0,8.599e-05,2]
[421129852,1777125799959,500.0,8.599e-05,2]
[421129853,1777125800004,500.0,8.599e-05,2]
[421129854,1777125816777,500.0,8.599e-05,2]
[421129855,1777125821387,326.60112719,8.599e-05,2]
[421129856,1777125833403,500.0,8.599e-05,2]
[421129857,1777125833443,500.0,8.599e-05,2]
[421129858,1777125833510,500.0,8.599e-05,2]
[421129859,1777125833541,204.66543297,8.599e-05,2]
[421129860,1777125835033,500.0,8.599e-05,2]
[421129861,1777125841669,300.0,8.599e-05,2]
[421129862,1777125842278,-9226.34777199,8.6e-05,2]
[421129863,1777125842355,-10000.01,8.6e-05,2]
[421129864,1777125844850,-10000.01,8.6e-05,2]
[421129865,1777125847979,-10000.01,8.6e-05,2]
[421129866,1777125848167,-10000.01,8.6e-05,2]
[421129867,1777125879792,500.0,8.599e-05,2]
[421129868,1777125882115,211.29,8.543e-05,2]
[421129869,1777125890599,500.0,8.599e-05,2]
[421129870,1777125890649,500.0,8.599e-05,2]
[421129871,1777125894916,183.1831921,8.599e-05,2]
[421129872,1777125900080,500.0,8.599e-05,2]
[421129873,1777125900130,465.93054876,8.599e-05,2]
[421129874,1777125901575,1200.0,8.599e-05,2]
[421129875,1777125905259,196.37199307,8.599e-05,2]
[421129876,1777125905563,155.0,8.599e-05,3]
[421129877,1777125905902,171.0,8.599e-05,3]
[421129878,1777125909376,162.0,8.599e-05,3]
[421129879,1777125912752,262.0,8.599e-05,2]
[421129880,1777125917886,500.0,8.599e-05,2]
[421129881,1777125936067,500.0,8.599e-05,2]
[421129882,1777125939449,518.1316577,8.599e-05,2]
[421129883,1777125944801,4158.2834,8.5e-05,2]
[421129884,1777125950788,507.60294501,8.599e-05,2]
[421129885,1777125950997,5334.12365499,8.5e-05,2]
[421129886,1777125951019,10000.01,8.5e-05,2]
[421129887,1777125951042,10000.01,8.5e-05,2]
[421129888,1777125951064,10000.01,8.5e-05,2]
[421129889,1777125951087,6158.72274501,8.5e-05,2]
[421129890,1777125961229,300.0,8.599e-05,2]
[421129891,1777125961886,150.0,8.599e-05,2]
[421129892,1777125962728,500.0,8.599e-05,2]
[421129893,1777125965743,300.0,8.599e-05,2]
[421129894,1777125965922,154.0,8.5e-05,3]
[421129895,1777125971495,392.7,8.543e-05,2]
[421129896,1777125972130,155.0,8.5e-05,3]
[421129897,1777125981822,500.0,8.599e-05,2]
[421129898,1777125995942,500.0,8.599e-05,2]
[421129899,1777126007572,500.0,8.599e-05,2]
[421129900,1777126019049,500.0,8.599e-05,2]
[421129901,1777126027570,154.0,8.599e-05,3]
[421129902,1777126029271,670.58624095,8.595e-05,2]
[421129903,1777126030987,500.0,8.599e-05,2]
[421129904,1777126036466,151.0,8.595e-05,2]
[421129905,1777126041077,194.72792766,8.595e-05,2]
[421129906,1777126042545,500.0,8.599e-05,2]
[421129907,1777126052820,500.0,8.599e-05,2]
[421129908,1777126052888,500.0,8.599e-05,2]
[421129909,1777126057309,-9252.09613523,8.6e-05,2]
[421129910,1777126058009,-10000.01,8.6e-05,2]
[421129911,1777126058044,-10000.01,8.6e-05,2]
[421129912,1777126058095,-10000.01,8.6e-05,2]
[421129913,1777126058123,-10000.01,8.6e-05,2]
[421129914,1777126064890,-10000.01,8.6e-05,2]
[421129915,1777126081883,500.0,8.599e-05,2]
[421129916,1777126141330,300.0,8.599e-05,2]
[421129917,1777126141695,150.0,8.599e-05,2]
[421129918,1777126147289,154.0,8.599e-05,3]
[421129919,1777126201130,300.0,8.599e-05,2]
[421129920,1777126201165,1200.0,8.599e-05,2]
[421129921,1777126212906,155.0,8.599e-05,3]
[421129926,1777126232287,-368052.72124633,8.6e-05,2]
[421129927,1777126232298,-1074766.23984437,8.6e-05,2]
[421129928,1777126232311,-76933.40945026,8.6e-05,2]
[421129929,1777126232323,-153473.23014688,8.6e-05,2]
[421129930,1777126232335,-508.61,8.6e-05,2]
[421129938,1777126238220,-1465.35479139,8.6e-05,2]
[421129939,1777126238233,-3625.13384008,8.6e-05,2]
[421129940,1777126238425,-263.36630388,8.6e-05,2]
[421129941,1777126238478,-420.24593211,8.6e-05,2]
[421129942,1777126238532,-6096.0,8.6e-05,2]
[421129970,1777126242762,-113510.52653969,8.6e-05,2]
[421129973,1777126242862,-491.42396994,8.6e-05,2]
[421129983,1777126243217,-3268.26365647,8.6e-05,2]
[421129984,1777126243237,-344.66,8.6e-05,2]
[421129985,1777126243249,-621.0,8.6e-05,2]
[421129988,1777126246204,-8600.16096363,8.6e-05,2]
[421130004,1777126248968,10000.01,8.5e-05,2]
[421130005,1777126248994,10000.01,8.5e-05,2]
[421130006,1777126249019,10000.01,8.5e-05,2]
[421130007,1777126249044,10000.01,8.5e-05,2]
[421130008,1777126249071,10000.01,8.5e-05,2]
[421130009,1777126249095,10000.01,8.5e-05,2]
[421130010,1777126249120,10000.01,8.5e-05,2]
[421130011,1777126249144,10000.01,8.5e-05,2]
[421130012,1777126249169,4845.01,8.5e-05,2]
[421130013,1777126249197,5000.01,8.5e-05,2]
[421130014,1777126249222,5000.01,8.5e-05,2]
[421130015,1777126249246,5000.01,8.5e-05,2]
[421130016,1777126249272,5000.01,8.5e-05,2]
[421130017,1777126249298,5000.01,8.5e-05,2]
[421130018,1777126249330,5000.01,8.5e-05,2]
[421130019,1777126249356,5000.01,8.5e-05,2]
[421130020,1777126256546,-4302.17138277,8.5e-05,2]
[421130021,1777126256653,-5000.01,8.5e-05,2]
[421130022,1777126256783,-5000.01,8.5e-05,2]
[421130023,1777126256929,-5000.01,8.5e-05,2]
[421130024,1777126257044,-5000.01,8.5e-05,2]
[421130025,1777126257134,-5000.01,8.5e-05,2]
[421130026,1777126257258,-5000.01,8.5e-05,2]
[421130027,1777126259389,-5000.01,8.5e-05,2]
[421130028,1777126259514,-5000.01,8.5e-05,2]
[421130029,1777126259626,-5000.01,8.5e-05,2]
[421130030,1777126259750,-5000.01,8.5e-05,2]
[421130031,1777126259879,-5000.01,8.5e-05,2]
[421130032,1777126260420,-5000.01,8.5e-05,2]
[421130033,1777126269459,-8000.01,8.5e-05,2]
[421130034,1777126269574,-10000.01,8.5e-05,2]
[421130035,1777126269667,-10000.01,8.5e-05,2]
[421130036,1777126271630,-10000.01,8.5e-05,2]
[421130037,1777126272149,-10000.01,8.5e-05,2]
[421130038,1777126272164,-10000.01,8.5e-05,2]
[421130039,1777126272177,-10000.01,8.5e-05,2]
[421130040,1777126272247,-10000.01,8.5e-05,2]
[421130041,1777126272341,-10000.01,8.5e-05,2]
[421130042,1777126274656,-10000.01,8.5e-05,2]
[421130043,1777126276054,-10000.01,8.5e-05,2]
[421130044,1777126276069,-10000.01,8.5e-05,2]
[421130045,1777126277774,-10000.01,8.5e-05,2]
[421130046,1777126277981,-10000.01,8.5e-05,2]
[421130047,1777126278110,-10000.01,8.5e-05,2]
[421130048,1777126280785,-10000.01,8.5e-05,2]
[421130049,1777126280884,-10000.01,8.5e-05,2]
[421130050,1777126280987,-10000.01,8.5e-05,2]
[421130051,1777126283710,-10000.01,8.5e-05,2]
[421130052,1777126283846,-10000.01,8.5e-05,2]
[421130053,1777126283956,-10000.01,8.5e-05,2]
[421130054,1777127102566,150.0,7.644e-05,2]
[421130055,1777127116388,150.0,7.644e-05,2]
[421130056,1777127116453,150.0,7.927e-05,2]
[421130057,1777127116731,150.0,7.644e-05,2]
[421130058,1777127121311,150.0,7.644e-05,2]
[421130059,1777127123406,150.0,7.644e-05,2]
[421130060,1777127123887,150.0,7.644e-05,2]
[421130061,1777127123919,150.0,7.856e-05,2]
[421130062,1777127126386,151.0,7.791e-05,2]
[421130063,1777127128864,150.0,7.644e-05,2]
[421130064,1777127128896,150.0,7.927e-05,2]
[421130065,1777127135341,150.0,7.644e-05,2]
[421130066,1777127135403,150.0,7.709e-05,2]
[421130067,1777127135476,150.0,7.774e-05,2]
[421130068,1777127135549,150.0,7.84e-05,2]
[421130069,1777127135619,150.0,7.905e-05,2]
[421130070,1777127135687,150.0,7.97e-05,2]
[421130071,1777127136424,150.0,7.644e-05,2]
[421130072,1777127136539,150.0,7.856e-05,2]
[421130073,1777127400974,392.73,7.721e-05,2]
[421130076,1777127432301,-150.0,8.036e-05,2]
[421130077,1777127432312,-250.0,8.052e-05,2]
[421130078,1777127432322,-150.0,8.068e-05,2]
[421130079,1777127432331,-150.0,8.068e-05,2]
[421130080,1777127432341,-150.0,8.068e-05,2]
[421130081,1777127432351,-150.0,8.068e-05,2]
[421130082,1777127432360,-150.0,8.101e-05,2]
[421130083,1777127432370,-150.0,8.166e-05,2]
[421130084,1777127432379,-150.0,8.21e-05,2]
[421130085,1777127432389,-150.0,8.21e-05,2]
[421130086,1777127432398,-1200.0,8.218e-05,2]
[421130087,1777127432408,-300.0,8.218e-05,2]
[421130088,1777127432418,-150.0,8.218e-05,2]
[421130089,1777127432427,-300.0,8.218e-05,2]
[421130090,1777127432437,-500.0,8.219e-05,2]
[421130091,1777127432447,-500.0,8.219e-05,2]
[421130092,1777127432457,-500.0,8.219e-05,2]
[421130093,1777127432467,-500.0,8.219e-05,2]
[421130094,1777127432477,-500.0,8.219e-05,2]
[421130095,1777127432487,-500.0,8.219e-05,2]
[421130096,1777127432497,-500.0,8.219e-05,2]
[421130097,1777127432507,-618.64316421,8.219e-05,2]
[421130098,1777127432516,-224.4834319,8.219e-05,2]
[421130099,1777127432526,-150.0,8.219e-05,2]
[421130100,1777127432536,-500.0,8.219e-05,2]
[421130101,1777127432546,-500.0,8.219e-05,2]
[421130102,1777127432556,-500.0,8.219e-05,2]
[421130103,1777127432566,-500.0,8.219e-05,2]
[421130104,1777127432576,-500.0,8.219e-05,2]
[421130105,1777127432586,-500.0,8.219e-05,2]
[421130106,1777127432595,-500.0,8.219e-05,2]
[421130107,1777127432605,-500.0,8.219e-05,2]
[421130108,1777127432615,-500.0,8.219e-05,2]
[421130109,1777127432625,-500.0,8.219e-05,2]
[421130111,1777127432635,-500.0,8.219e-05,2]
[421130113,1777127432649,-500.0,8.219e-05,2]
[421130115,1777127432659,-500.0,8.219e-05,2]
[421130117,1777127432669,-500.0,8.219e-05,2]
[421130119,1777127432678,-500.0,8.219e-05,2]
[421130121,1777127432689,-500.0,8.219e-05,2]
[421130123,1777127432699,-500.0,8.219e-05,2]
[421130125,1777127432709,-475.29561519,8.219e-05,2]
[421130126,1777127432719,-293.12826482,8.219e-05,2]
[421130128,1777127432728,-150.0,8.219e-05,2]
[421130130,1777127432738,-3847.0,8.219e-05,2]
[421130132,1777127432749,-3847.0,8.219e-05,2]
[421130134,1777127432759,-3847.0,8.219e-05,2]
[421130136,1777127432769,-3847.0,8.219e-05,2]
[421130138,1777127432779,-3847.0,8.219e-05,2]
[421130140,1777127432790,-3847.0,8.219e-05,2]
[421130142,1777127432800,-3847.0,8.219e-05,2]
[421130143,1777127432810,-3847.0,8.219e-05,2]
[421130145,1777127432819,-3847.0,8.219e-05,2]
[421130147,1777127432829,-3847.0,8.219e-05,2]
[421130149,1777127432840,-3847.0,8.219e-05,2]
[421130151,1777127432850,-500.0,8.219e-05,2]
[421130153,1777127432859,-500.0,8.219e-05,2]
[421130155,1777127432869,-500.0,8.219e-05,2]
[421130157,1777127432879,-3847.0,8.219e-05,2]
[421130159,1777127432889,-500.0,8.219e-05,2]
[421130161,1777127432898,-150.0,8.219e-05,2]
[421130163,1777127432909,-3847.0,8.219e-05,2]
[421130164,1777127432919,-500.0,8.219e-05,2]
[421130165,1777127432931,-150.0,8.219e-05,2]
[421130166,1777127432941,-3847.0,8.219e-05,2]
[421130167,1777127432951,-297.61625335,8.219e-05,2]
[421130168,1777127432960,-3847.0,8.219e-05,2]
[421130169,1777127432970,-202.34924487,8.219e-05,2]
[421130170,1777127432980,-3847.0,8.219e-05,2]
[421130171,1777127432990,-3847.0,8.219e-05,2]
[421130172,1777127433000,-3847.0,8.219e-05,2]
[421130173,1777127433010,-3847.0,8.219e-05,2]
[421130174,1777127433019,-3847.0,8.219e-05,2]
[421130175,1777127433029,-3847.0,8.219e-05,2]
[421130176,1777127433039,-3847.0,8.219e-05,2]
[421130177,1777127433049,-3847.0,8.219e-05,2]
[421130178,1777127433058,-3867.97912824,8.219e-05,2]
[421130179,1777127433068,-200.10247901,8.219e-05,2]
[421130180,1777127433078,-177.14,8.226e-05,2]
[421130181,1777127433087,-150.0,8.226e-05,2]
[421130182,1777127433097,-150.0,8.226e-05,2]
[421130183,1777127433106,-150.0,8.226e-05,2]
[421130184,1777127433115,-150.0,8.226e-05,2]
[421130185,1777127433125,-150.0,8.226e-05,2]
[421130186,1777127433135,-231.10414067,8.226e-05,2]
[421130187,1777127433145,-500.0,8.226e-05,2]
[421130188,1777127433155,-150.0,8.232e-05,2]
[421130189,1777127433165,-578.20924308,8.238e-05,2]
[421130190,1777127433174,-331.0,8.238e-05,2]
[421130191,1777127433184,-387.0,8.242e-05,2]
[421130192,1777127433193,-179.0,8.263e-05,2]
[421130193,1777127433203,-625.0,8.271e-05,2]
[421130194,1777127433213,-150.0,8.281e-05,2]
[421130195,1777127433222,-150.0,8.281e-05,2]
[421130196,1777127433232,-331.0,8.285e-05,2]
[421130197,1777127433241,-295.0,8.289e-05,2]
[421130198,1777127433250,-331.0,8.29e-05,2]
[421130199,1777127433260,-150.0,8.297e-05,2]
[421130200,1777127433269,-331.0,8.306e-05,2]
[421130201,1777127433279,-670.58624095,8.321e-05,2]
[421130202,1777127433288,-151.0,8.321e-05,2]
[421130203,1777127433298,-194.72792766,8.321e-05,2]
[421130204,1777127433308,-150.0,8.326e-05,2]
[421130205,1777127433317,-150.0,8.326e-05,2]
[421130206,1777127433327,-150.0,8.326e-05,2]
[421130207,1777127433336,-263.79942397,8.326e-05,2]
[421130208,1777127433346,-500.0,8.356e-05,2]
[421130209,1777127433358,-150.0,8.362e-05,2]
[421130210,1777127433369,-331.0,8.374e-05,2]
[421130211,1777127433379,-151.0,8.376e-05,2]
[421130212,1777127433390,-331.0,8.397e-05,2]
[421130213,1777127433407,-12943.05,8.4e-05,2]
[421130214,1777127433417,-10000.01,8.4e-05,2]
[421130215,1777127433427,-331.0,8.407e-05,2]
[421130216,1777127433437,-150.0,8.428e-05,2]
[421130217,1777127433446,-151.0,8.431e-05,2]
[421130218,1777127433455,-301.0,8.441e-05,2]
[421130219,1777127433465,-331.0,8.456e-05,2]
[421130220,1777127433474,-331.0,8.475e-05,2]
[421130221,1777127433483,-331.0,8.484e-05,2]
[421130222,1777127433493,-151.0,8.486e-05,2]
[421130223,1777127433502,-463.3609749,8.489e-05,2]
[421130224,1777127433512,-150.0,8.493e-05,2]
[421130225,1777127433522,-150.0,8.493e-05,2]
[421130226,1777127433531,-150.00000001,8.493e-05,2]
[421130227,1777127433541,-177.31547693,8.493e-05,2]
[421130228,1777127433550,-150.0,8.493e-05,2]
[421130229,1777127433560,-240.30270347,8.493e-05,2]
[421130230,1777127433569,-171.93622986,8.493e-05,2]
[421130231,1777127433579,-150.0,8.493e-05,2]
[421130232,1777127433588,-331.0,8.495e-05,2]
[421130233,1777127433598,-151.0,8.497e-05,2]
[421130234,1777127433607,-1729.305,8.499e-05,2]
[421130235,1777127433617,-150.451,8.499e-05,2]
[421130236,1777127433626,-800.57109369,8.5e-05,2]
[421130237,1777127433636,-209.55590914,8.5e-05,2]
[421130238,1777127433646,-458.87568672,8.5e-05,2]
[421130239,1777127433655,-1000.0,8.5e-05,2]
[421130240,1777127433666,-1000.0,8.5e-05,2]
[421130241,1777127433676,-1000.0,8.5e-05,2]
[421130242,1777127433685,-1000.0,8.5e-05,2]
[421130243,1777127433695,-1000.0,8.5e-05,2]
[421130244,1777127433706,-1000.0,8.5e-05,2]
[421130245,1777127433716,-1000.0,8.5e-05,2]
[421130246,1777127433726,-810.43848707,8.5e-05,2]
[421130247,1777127433736,-548.35979931,8.5e-05,2]
[421130248,1777127433746,-177.15,8.5e-05,2]
[421130249,1777127433756,-500.0,8.5e-05,2]
[421130250,1777127433766,-803.47185484,8.5e-05,2]
[421130251,1777127433776,-175.0,8.5e-05,3]
[421130252,1777127433786,-179.0,8.5e-05,3]
[421130253,1777127433797,-157.0,8.5e-05,3]
[421130254,1777127433807,-204.75579528,8.5e-05,2]
[421130255,1777127433817,-325.0,8.511e-05,2]
[421130256,1777127433827,-7893.12173427,8.52e-05,2]
[421130257,1777127433838,-151.0,8.541e-05,2]
[421130258,1777127433850,-477.73,8.546e-05,2]
[421130259,1777127433860,-539.0,8.548e-05,2]
[421130260,1777127433870,-152.0,8.552e-05,7]
[421130261,1777127433880,-331.0,8.559e-05,2]
[421130262,1777127433890,-991.0,8.567e-05,5]
[421130263,1777127433899,-982.0,8.567e-05,5]
[421130264,1777127433909,-331.0,8.59e-05,2]
[421130265,1777127433919,-151.0,8.596e-05,2]
[421130266,1777127433930,-500.0,8.6e-05,2]
[421130267,1777127433939,-500.0,8.6e-05,2]
[421130268,1777127433950,-500.0,8.6e-05,2]
[421130269,1777127433959,-500.0,8.6e-05,2]
[421130270,1777127433969,-500.0,8.6e-05,2]
[421130271,1777127433978,-500.0,8.6e-05,2]
[421130272,1777127433988,-428.21423266,8.6e-05,2]
[421130273,1777127433997,-500.0,8.603e-05,2]
[421130274,1777127434007,-327.9870533,8.606e-05,2]
[421130275,1777127434017,-227.0,8.644e-05,2]
[421130276,1777127434027,-151.0,8.651e-05,2]
[421130277,1777127434037,-178.21,8.677e-05,2]
[421130278,1777127434047,-1093.83820704,8.699e-05,3]
[421130279,1777127434057,-1093.83820704,8.699e-05,3]
[421130280,1777127434066,-289.40889456,8.699e-05,2]
[421130281,1777127434077,-500.0,8.699e-05,2]
[421130282,1777127434087,-500.0,8.699e-05,2]
[421130283,1777127434097,-463.66033379,8.699e-05,2]
[421130284,1777127434107,-500.0,8.699e-05,2]
[421130285,1777127434116,-500.0,8.699e-05,2]
[421130286,1777127434126,-421.61781755,8.699e-05,2]
[421130287,1777127434135,-500.0,8.699e-05,2]
[421130288,1777127434145,-335.14706012,8.699e-05,2]
[421130289,1777127434154,-500.0,8.699e-05,2]
[421130290,1777127434164,-500.0,8.699e-05,2]
[421130291,1777127434174,-500.0,8.699e-05,2]
[421130292,1777127434183,-220.5,8.699e-05,2]
[421130293,1777127434193,-250.0,8.699e-05,2]
[421130294,1777127434203,-168812.77800375,8.7e-05,2]
[421130295,1777127434219,-11633.0023117,8.7e-05,2]
[421130296,1777127434228,-101198.1785208,8.7e-05,2]
[421130297,1777127434240,-5809.05212632,8.7e-05,2]
[421130298,1777127434260,-520.0,8.7e-05,2]
[421130300,1777127438618,-12943.0499912,8.7e-05,2]
[421130301,1777127438673,-37873.0,8.7e-05,2]
[421130323,1777127440489,-463.17396815,8.7e-05,2]
[421130324,1777127440546,-850.70101574,8.7e-05,2]
[421130325,1777127441028,-1075.38158507,8.7e-05,2]
[421130326,1777127441085,-283200.07484905,8.7e-05,2]
[421130327,1777127441095,-500.0,8.7e-05,2]
[421130328,1777127441105,-500.0,8.7e-05,2]
[421130329,1777127441116,-500.0,8.7e-05,2]
[421130330,1777127441126,-500.0,8.7e-05,2]
[421130331,1777127441138,-186.731666,8.7e-05,2]
[421130332,1777127441148,-151.0,8.7e-05,2]
[421130333,1777127441159,-151.0,8.7e-05,2]
[421130334,1777127441169,-151.0,8.706e-05,2]
[421130336,1777127441179,-151.0,8.761e-05,2]
[421130337,1777127441193,-250.0,8.767e-05,2]
[421130338,1777127441202,-151.0,8.816e-05,2]
[421130339,1777127441213,-300.0,8.839e-05,2]
[421130340,1777127441223,-300.0,8.839e-05,2]
[421130341,1777127441234,-271.95713437,8.839e-05,2]
[421130342,1777127441244,-300.0,8.839e-05,2]
[421130343,1777127441254,-5000.0,8.839e-05,2]
[421130344,1777127441265,-250.0,8.839e-05,2]
[421130345,1777127441276,-300.0,8.839e-05,2]
[421130346,1777127441287,-500.0,8.839e-05,2]